fUSD/lending_fUSD_20250228
["ID","MTS","AMOUNT","RATE_DAILY","PERIOD"]
[354812175,1740712232890,-130689.61198776,0.00029921,30]
[354812184,1740712232969,-4397.31838806,0.00029921,30]
[354812186,1740712232982,-3658.89701838,0.00029921,30]
[354812420,1740712238098,-4324.84397,0.00029921,30]
[354812421,1740712238157,-24398.70647298,0.00029921,30]
[354812422,1740712238168,-16183.48333627,0.00029921,30]
[354812423,1740712238263,-260.51574553,0.00029921,30]
[354812424,1740712238373,-81221.45669289,0.00029921,30]
[354812425,1740712238426,-9788.3234239,0.00029921,30]
[354812445,1740712240220,-274.18593766,0.0002992,2]
[354812446,1740712240232,-225.81406234,0.0002992,2]
[354812447,1740712240243,-278.46566152,0.0002992,2]
[354812448,1740712240252,-300.18027614,0.00029921,30]
[354812449,1740712240327,-600.97049287,0.00029921,30]
[354812450,1740712240339,-714.6300844,0.00029921,30]
[354812451,1740712240350,-812.7912834,0.00029921,30]
[354812452,1740712240361,-1288.34009574,0.00029921,30]
[354812453,1740712240373,-307.76029,0.00029921,30]
[354812454,1740712240594,-9096.64373114,0.00029921,30]
[354812455,1740712240606,-8947.21879473,0.00029921,30]
[354812456,1740712240617,-8943.78386462,0.00029921,30]
[354812457,1740712240628,-9077.54866152,0.00029921,30]
[354812458,1740712240640,-8943.84023489,0.00029921,30]
[354812459,1740712240695,-124.9997275,0.00029921,30]
[354812534,1740712243352,-780.4587598,0.00029921,30]
[354812535,1740712243405,-632.58679888,0.00029921,30]
[354812557,1740712246365,-5065.78537017,0.00029921,30]
[354812731,1740713221242,-300.0,0.00014999,2]
[354812747,1740713289170,149508.21482633,9.9e-05,2]
[354812748,1740713305570,6211.48103307,0.000136,2]
[354812764,1740713346266,-236.35524744,0.000149,2]
[354812820,1740713432428,-313.79163324,0.000149,2]
[354812821,1740713432441,-152.26535947,0.00014973,2]
[354812822,1740713432453,-509.6474415,0.00014973,2]
[354812823,1740713432463,-195.31424744,0.00014973,2]
[354812824,1740713432472,-1638.53,0.0001499,2]
[354812825,1740713432482,-1638.53,0.0001499,2]
[354812826,1740713432491,-148.23829831,0.00014999,2]
[354812827,1740713432503,-96.68766475,0.00014999,2]
[354812828,1740713432512,-300.0,0.00014999,2]
[354812829,1740713432521,-150.0,0.00014999,2]
[354812830,1740713432531,-1057.99360571,0.00015,2]
[354812831,1740713432543,-434.61,0.00015,2]
[354812841,1740713432800,-1682.05419453,0.00015,2]
[354812848,1740713438484,-153.77221282,0.0001489,2]
[354812849,1740713438495,-5915.90458774,0.00015,2]
[354812850,1740713438507,-81460.90000001,0.00015,2]
[354812851,1740713438548,-81594.48479658,0.00015,2]
[354812854,1740713438560,-2185.8,0.00015,2]
[354812988,1740713440387,-361.90137147,0.00015,2]
[354812989,1740713440399,-5706.0,0.00015,2]
[354812990,1740713440514,-372.50946649,0.00015,2]
[354812991,1740713440574,-2090.40897658,0.00015,2]
[354813263,1740713443444,-918.92358531,0.00015,2]
[354813265,1740713443459,-386.183,0.00015,2]
[354813273,1740713443506,-10473.69002335,0.00015,2]
[354813333,1740713444641,-27619.09155956,0.00015,2]
[354813334,1740713444652,-253.88923684,0.00015,2]
[354813335,1740713444667,-966.30587173,0.00015,2]
[354813336,1740713444679,-2137.81251286,0.00015,2]
[354813337,1740713444694,-457.46955249,0.00015,2]
[354813342,1740713446721,-1433.77047196,0.00015,2]
[354814314,1740713677333,50000.0,0.0002,30]
[354814317,1740713782479,-198.77,0.00024712,30]
[354814318,1740713782514,-919.31,0.00027279,120]
[354814319,1740713782545,-20276.20895691,0.00028071,30]
[354814320,1740713782580,-198.77,0.00029191,30]
[354814321,1740713782609,-162.17062028,0.00029207,120]
[354814322,1740713782646,-150.0,0.00030467,120]
[354814323,1740713782678,-1040.2,0.00032014,120]
[354814324,1740713782711,-198.77,0.00033669,120]
[354814325,1740713782756,-1040.2,0.00035571,120]
[354814326,1740713782791,-191.05812442,0.000372,103]
[354814327,1740713782824,-198.77,0.00038147,120]
[354814328,1740713782858,-792.88487571,0.00039,120]
[354814329,1740713782893,-1040.2,0.00039128,120]
[354814330,1740713909704,2878.432,0.000147,2]
[354814331,1740713909771,2878.432,0.00038525,52]
[354814332,1740713913458,175.75087306,0.000148,2]
[354814334,1740714227714,11661.2476413,0.0004,30]
[354814335,1740714283108,351.50174608,0.000148,2]
[354814352,1740714520727,-300.0,0.00014899,2]
[354814353,1740714520762,-150.0,0.00014899,2]
[354814355,1740714520800,-202.09329946,0.000149,2]
[354814357,1740714520838,-6799.11554493,0.000149,2]
[354814359,1740714520875,-7451.20884439,0.000149,2]
[354814361,1740714520921,-7451.20884439,0.000149,2]
[354814362,1740714520965,-7451.20884439,0.000149,2]
[354814363,1740714521016,-7451.20884439,0.000149,2]
[354814364,1740714521054,-7451.20884439,0.000149,2]
[354814365,1740714521094,-7451.20884439,0.000149,2]
[354814366,1740714521133,-7451.20884439,0.000149,2]
[354814367,1740714521171,-7451.20884439,0.000149,2]
[354814368,1740714521217,-7451.20884439,0.000149,2]
[354814369,1740714521266,-7451.20884439,0.000149,2]
[354814370,1740714521318,-7451.20884439,0.000149,2]
[354814371,1740714521369,-6305.56321661,0.000149,2]
[354814372,1740714521406,-7451.20884439,0.000149,2]
[354814373,1740714521443,-7451.20884439,0.000149,2]
[354814374,1740714538663,1000.0,0.0004,30]
[354814375,1740714545765,-4000.0,0.0001485,2]
[354814376,1740714545792,-5663.65858515,0.000149,2]
[354814377,1740714545831,-224.45777624,0.000149,2]
[354814378,1740714545863,-336.79184502,0.000149,2]
[354814385,1740714555870,2000.0,0.0004,30]
[354814783,1740714631651,-644.98,0.000149,2]
[354814784,1740714631661,-150.0,0.00014906,2]
[354814786,1740714631671,-450.0,0.0001495,2]
[354814787,1740714631680,-150.0,0.00014952,2]
[354814788,1740714631691,-220.6328529,0.00014999,2]
[354814790,1740714631701,-63291.269513,0.00015,2]
[354814800,1740714631931,-2090.15361943,0.00015,2]
[354814804,1740714632014,-6122.32793379,0.00015,2]
[354814806,1740714632026,-71451.32602757,0.00015,2]
[354814945,1740714635888,-1502.25822691,0.00015,2]
[354815012,1740714637468,-313.79163324,0.000149,2]
[354815014,1740714637478,-491273.34519488,0.00015,2]
[354815015,1740714637488,-91366.60594571,0.00015,2]
[354815017,1740714637515,-29206.07234415,0.00015,2]
[354815018,1740714637527,-366.14315867,0.00015,2]
[354815026,1740714637684,-311.19161654,0.00015,2]
[354815060,1740714639484,-5234.72167251,0.00015,2]
[354815061,1740714639541,-5927.01536315,0.00015,2]
[354815062,1740714639552,-41787.98234486,0.00015,2]
[354815064,1740714639763,-405.405,0.00015,2]
[354815276,1740714642575,-81019.91359631,0.00015,2]
[354815277,1740714642586,-435.00138999,0.00015,2]
[354815557,1740714645679,-500.0,0.00015,2]
[354815566,1740714645755,-1146.87343854,0.00015,2]
[354815574,1740714645813,-3699.10462599,0.00015,2]
[354815591,1740714645980,-8215.02545375,0.00015,2]
[354818659,1740714753754,625.89117117,0.00039999,31]
[354818660,1740714754371,208.04,0.00024956,120]
[354818661,1740714754594,208.04,0.00027729,120]
[354818662,1740714754825,208.04,0.00030502,120]
[354818663,1740714755045,208.04,0.00033275,120]
[354818664,1740714756712,159.01,0.00024712,30]
[354818665,1740714756921,159.01,0.00030186,30]
[354818666,1740714757113,159.01,0.00035659,120]
[354818667,1740714891127,217.399418,0.00033131,30]
[354818725,1740715313333,181.23863571,0.000148,2]
[354818752,1740715659096,190.39316738,0.0001477,2]
[354818753,1740715714884,300.0,0.0004,120]
[354818754,1740715732569,4456.11,0.00039,120]
[354818756,1740715750221,581.0,0.0004,120]
[354818758,1740715761225,300.0,0.0004,120]
[354819416,1740715831237,156.81,0.00028097,120]
[354819451,1740715831639,156.81,0.00031609,120]
[354819458,1740715831702,-450.0,0.0001485,2]
[354819460,1740715831712,-150.0,0.0001485,2]
[354819461,1740715831721,-464.92891238,0.0001485,2]
[354819463,1740715831733,-20210.0,0.0001485,2]
[354819464,1740715831744,-5117.99999991,0.0001485,2]
[354819468,1740715831924,-1933.96308261,0.0001485,2]
[354819470,1740715831971,-648.12992617,0.0001485,2]
[354819473,1740715832038,-1255.399995,0.0001485,2]
[354819474,1740715832052,-9656.73626145,0.0001485,2]
[354819475,1740715832062,-150.0,0.00014864,2]
[354819477,1740715832072,-360.8908,0.000149,2]
[354819478,1740715832082,-216.01578111,0.000149,2]
[354819479,1740715832091,-6754.82139338,0.000149,2]
[354819480,1740715832101,-502.84801565,0.00014973,2]
[354819481,1740715832111,-150.0,0.00014999,2]
[354819483,1740715832121,-2233.68774841,0.00015,2]
[354819484,1740715832137,-760.23714022,0.00015,2]
[354819545,1740715837606,-48345.9248357,0.00015,2]
[354819546,1740715837616,-4000.0,0.00015,2]
[354819547,1740715837626,-450.0,0.00016334,2]
[354819548,1740715837635,-450.0,0.00016334,2]
[354819549,1740715837645,-150.0,0.00016334,2]
[354819550,1740715837655,-380.0,0.0001674,2]
[354819551,1740715837665,-1082.79829437,0.0001688,2]
[354819552,1740715837675,-800.73447129,0.00017257,2]
[354819553,1740715837684,-585.0,0.000174,2]
[354819554,1740715837693,-250.0,0.00017477,2]
[354819555,1740715837705,-208.59511628,0.000184,2]
[354819556,1740715837715,-208.59511615,0.00018452,2]
[354819557,1740715837724,-659.97,0.00018468,2]
[354819558,1740715837735,-15236.66556483,0.00019,5]
[354819559,1740715837744,-600.91089645,0.000192,2]
[354819560,1740715837753,-902.5,0.00019808,2]
[354819561,1740715837763,-874.5055,0.00019821,2]
[354819562,1740715837772,-3000.0,0.00019847,2]
[354819563,1740715837782,-1813.80020502,0.00019862,2]
[354819564,1740715837794,-506.3499875,0.00019862,2]
[354819565,1740715837826,-679.84980748,0.00019862,2]
[354819566,1740715837835,-150.43,0.00019893,2]
[354819567,1740715837844,-1406.46,0.00019894,2]
[354819568,1740715837854,-155.864,0.00019894,2]
[354819569,1740715837863,-155.864,0.00019894,2]
[354819570,1740715837873,-155.864,0.00019894,2]
[354819571,1740715837883,-3000.0,0.00019908,2]
[354819572,1740715837892,-2311.66819252,0.00019921,2]
[354819573,1740715837904,-260.51574553,0.00019921,2]
[354819574,1740715837926,-378.72912845,0.00019921,2]
[354819575,1740715837937,-49.0869335,0.00019921,2]
[354819576,1740715837948,-2073.03306649,0.00019944,2]
[354819577,1740715837963,-326.0,0.00019944,2]
[354819578,1740715837978,-600.96693351,0.00019944,2]
[354819579,1740715837987,-165.82,0.00019982,2]
[354819580,1740715837996,-249.14405139,0.0002,4]
[354819591,1740715839781,-730.0,0.0002,4]
[354819592,1740715839840,-400.4,0.0002,4]
[354819593,1740715839983,-4742.23293488,0.0002,4]
[354819594,1740715839994,-11236.55602512,0.0002,4]
[354819595,1740715840006,-8002.0214795,0.0002,4]
[354819596,1740715840016,-4000.0,0.0002,2]
[354819597,1740715840027,-751.86,0.00020002,2]
[354819598,1740715840037,-208.59511615,0.00020003,2]
[354819599,1740715840047,-178.5,0.00020105,2]
[354819600,1740715840056,-201.4508939,0.00020168,2]
[354819601,1740715840066,-4657.57881045,0.00020182,2]
[354819602,1740715840085,-3010.98118955,0.00020182,2]
[354819603,1740715840095,-2751.0,0.00020272,2]
[354819604,1740715840105,-659.97,0.00020732,2]
[354819605,1740715840114,-184.72,0.00020758,2]
[354819606,1740715840124,-1000.0,0.00020865,2]
[354819607,1740715840134,-1527.79,0.00020885,2]
[354819608,1740715840144,-1050.42,0.00020951,2]
[354819609,1740715840155,-930.88,0.00020951,2]
[354819610,1740715840165,-250.0,0.00021,2]
[354819611,1740715840175,-1502.91,0.00021012,2]
[354819612,1740715840184,-156.81,0.00021073,2]
[354819613,1740715840194,-150.43,0.00021136,2]
[354819614,1740715840205,-500.0,0.0002123,2]
[354819615,1740715840215,-1028.76,0.00021378,2]
[354819616,1740715840225,-208.59511615,0.00021555,2]
[354819617,1740715840236,-150.0,0.0002188,7]
[354819618,1740715840246,-191.09,0.00021889,2]
[354819619,1740715840258,-250.0,0.00021927,2]
[354819621,1740715840268,-200.0,0.00022044,2]
[354819623,1740715840277,-10708.44,0.00022113,2]
[354819625,1740715840287,-1722.76,0.00022131,2]
[354819627,1740715840297,-208.04,0.00022183,2]
[354819629,1740715840307,-218.29,0.00022198,2]
[354819631,1740715840317,-167.56,0.00022206,2]
[354819633,1740715840328,-1663.17,0.00022217,2]
[354819635,1740715840338,-728.43,0.00022253,2]
[354819636,1740715840347,-3990.947,0.00022296,2]
[354819637,1740715840356,-150.43,0.0002238,2]
[354819638,1740715840366,-23900.0,0.00022396,2]
[354819639,1740715840377,-1000.0,0.00022409,2]
[354819640,1740715840386,-1000.0,0.00022409,2]
[354819641,1740715840396,-1000.0,0.00022409,2]
[354819642,1740715840405,-1000.0,0.00022409,2]
[354819643,1740715840415,-200.0,0.00022409,2]
[354819644,1740715840424,-529.18,0.0002244,2]
[354819645,1740715840434,-659.97,0.00022995,2]
[354819646,1740715840444,-300.0,0.00023,2]
[354819647,1740715840456,-208.59511615,0.00023107,3]
[354819649,1740715840465,-1269.36,0.00023451,2]
[354819650,1740715840474,-1000.0,0.00023473,2]
[354819652,1740715840485,-1269.36,0.00023574,2]
[354819654,1740715840495,-150.43,0.00023623,2]
[354819656,1740715840504,-1269.36,0.00023698,2]
[354819658,1740715840513,-1269.36,0.00023821,2]
[354819660,1740715840522,-175.19,0.00023836,2]
[354819662,1740715840531,-1269.36,0.00023944,2]
[354819664,1740715840541,-1269.36,0.00024068,2]
[354819666,1740715840550,-1269.36,0.00024191,2]
[354819668,1740715840559,-1269.36,0.00024315,2]
[354819670,1740715840568,-1269.36,0.00024438,2]
[354819672,1740715840578,-1727.059,0.00024547,7]
[354819674,1740715840588,-784.33131867,0.00024562,2]
[354819677,1740715840603,-485.02868133,0.00024562,2]
[354819679,1740715840612,-156.81,0.00024585,2]
[354819681,1740715840621,-208.59511615,0.00024659,3]
[354819683,1740715840630,-1269.36,0.00024685,2]
[354819685,1740715840639,-1269.36,0.00024808,2]
[354819687,1740715840648,-150.43,0.00024866,2]
[354819689,1740715840657,-1269.36,0.00024932,2]
[354819691,1740715840666,-350.0,0.00025,2]
[354819693,1740715840676,-4000.0,0.00025,2]
[354819695,1740715840685,-166.37850224,0.00025021,2]
[354819697,1740715840694,-459.4667131,0.00025055,2]
[354819699,1740715840707,-404.760008,0.00025055,2]
[354819762,1740715842742,-405.1332789,0.00025055,2]
[354819765,1740715842751,-1269.36,0.00025179,2]
[354819767,1740715842760,-341.30663846,0.00025259,2]
[354819775,1740715842798,-318.66336154,0.00025259,2]
[354819777,1740715842808,-350.34178245,0.000253,10]
[354819778,1740715842817,-134.19805601,0.00025302,2]
[354819782,1740715842856,-252.66813607,0.00025302,2]
[354819796,1740715844947,-755.2,0.00025302,2]
[354819810,1740715845922,-127.29380792,0.00025302,2]
[354819811,1740715845933,-1084.91115798,0.00025426,2]
[354819834,1740715846530,-184.44884202,0.00025426,2]
[354819836,1740715846540,-1269.36,0.00025549,2]
[354819838,1740715846549,-1131.81549417,0.00025552,2]
[354819840,1740715846558,-1269.36,0.00025672,2]
[354819842,1740715846567,-1269.36,0.00025796,2]
[354819844,1740715846576,-47014.4126112,0.000259,2]
[354819846,1740715846585,-1000.0,0.00026081,2]
[354819847,1740715846593,-150.43,0.0002611,2]
[354819849,1740715846603,-576.79363972,0.00026182,2]
[354819851,1740715846612,-208.59511615,0.0002621,4]
[354819853,1740715846621,-754.40012534,0.00026709,2]
[354819855,1740715846630,-3860.56614698,0.00026749,2]
[354819858,1740715846640,-2946.482985,0.00026849,2]
[354819860,1740715846650,-160.55,0.00026849,2]
[354819862,1740715846659,-285.63,0.00026849,2]
[354819864,1740715846667,-400.0,0.00027,2]
[354819866,1740715846676,-3939.963,0.00027172,2]
[354819868,1740715846685,-152.66,0.00027172,2]
[354819870,1740715846695,-1112.358,0.00027172,2]
[354819872,1740715846704,-1281.549,0.00027192,2]
[354819874,1740715846714,-151.0,0.0002735,7]
[354819875,1740715846723,-151.0,0.0002735,7]
[354819877,1740715846732,-151.0,0.0002735,7]
[354819879,1740715846741,-150.43,0.00027353,2]
[354819881,1740715846751,-659.97,0.00027523,2]
[354819883,1740715846760,-208.59511615,0.00027762,4]
[354819885,1740715846769,-153.951277,0.00028363,7]
[354819887,1740715846778,-151.0,0.00028363,7]
[354819889,1740715846787,-152.048223,0.00028363,7]
[354819891,1740715846797,-151.0,0.00028363,7]
[354819893,1740715846806,-151.477267,0.00028363,7]
[354819895,1740715846815,-151.0,0.00028363,7]
[354819897,1740715846824,-151.0,0.00028363,7]
[354819899,1740715846834,-151.0,0.00028363,7]
[354819901,1740715846843,-151.0,0.00028363,7]
[354819903,1740715846852,-155.00736,0.00028363,7]
[354819905,1740715846861,-151.0,0.00028363,7]
[354819907,1740715846870,-151.0,0.00028363,7]
[354819909,1740715846879,-151.0,0.00028363,7]
[354819911,1740715846888,-151.701563,0.00028363,7]
[354819913,1740715846897,-151.0,0.00028363,7]
[354819915,1740715846906,-151.0,0.00028363,7]
[354819917,1740715846915,-151.0,0.00028363,7]
[354819919,1740715846924,-151.0,0.00028363,7]
[354819921,1740715846933,-164.609617,0.00028363,7]
[354819923,1740715846941,-151.0,0.00028363,7]
[354819925,1740715846951,-1103.61368065,0.00028416,2]
[354819927,1740715846960,-150.43,0.00028596,2]
[354819929,1740715846969,-1000.0,0.00028689,2]
[354819931,1740715846979,-450.0,0.00029,2]
[354819933,1740715846988,-1527.79,0.00029239,2]
[354819935,1740715846997,-208.59511615,0.00029314,5]
[354819937,1740715847006,-195.7582592,0.00029321,4]
[354819939,1740715847015,-153.33,0.00029324,2]
[354819941,1740715847024,-151.0,0.000295,7]
[354819943,1740715847033,-151.0,0.000295,7]
[354819945,1740715847042,-152.605108,0.000295,7]
[354819947,1740715847051,-155.877439,0.000295,7]
[354819949,1740715847060,-269.218819,0.000295,7]
[354819951,1740715847069,-187.334411,0.000295,7]
[354819953,1740715847079,-500.0,0.00029699,2]
[354819955,1740715847087,-659.97,0.00029787,2]
[354819957,1740715847096,-1262.0,0.00029824,5]
[354819959,1740715847105,-1177.26781978,0.00029824,10]
[354819961,1740715847114,-316.33640522,0.00029829,2]
[354819963,1740715847123,-150.43,0.0002984,2]
[354819965,1740715847132,-265.641785,0.00029929,7]
[354819967,1740715847141,-187.334411,0.00029929,7]
[354819969,1740715847151,-187.334411,0.00029929,7]
[354819971,1740715847160,-152.372214,0.00029929,7]
[354819973,1740715847169,-152.913532,0.00029929,7]
[354819975,1740715847178,-151.0,0.00029929,7]
[354819977,1740715847188,-151.0,0.00029929,7]
[354819979,1740715847198,-151.0,0.00029929,7]
[354819981,1740715847207,-155.100179,0.00029929,7]
[354819983,1740715847216,-150722.59172876,0.00029929,30]
[354819985,1740715847227,-11054.70436447,0.00029929,30]
[354819987,1740715847243,-5654.72401001,0.00029929,30]
[354820775,1740715862771,200.0,0.00029928,30]
[354820786,1740716126409,159.01,0.00029172,30]
[354820787,1740716126614,159.01,0.00037382,120]
[354820788,1740716191291,555.72475,0.0003954,34]
[354820789,1740716199326,2000.0,0.00028844,120]
[354820803,1740716776902,20000.0,0.00025,30]
[354820804,1740716823858,2463.10396,0.0003954,34]
[354820814,1740716873751,1216.89011123,0.00013,15]
[354820815,1740716907131,4461.14301,0.000136,2]
[354820848,1740716952082,20000.0,0.00025,30]
[354820876,1740717031885,-177.87927199,0.000149,2]
[354820879,1740717031895,-450.0,0.00014949,2]
[354820881,1740717031905,-150.0,0.00014949,2]
[354820883,1740717031915,-150.0,0.00014999,2]
[354820885,1740717031926,-5154.92069801,0.00015,2]
[354820909,1740717035396,-2938.88163658,0.00015,2]
[354820910,1740717035481,-2876.89038501,0.00015,2]
[354820911,1740717035498,-1006.1552966,0.00015,2]
[354820912,1740717035578,-719.19322923,0.00015,2]
[354821115,1740717037744,-331.37479486,0.00015,2]
[354821138,1740717037934,-303.18179774,0.00015,2]
[354821368,1740717040093,-2763.72659125,0.00015,2]
[354821370,1740717040106,-4036.26459552,0.00015,2]
[354821372,1740717040117,-80597.9303415,0.00015,2]
[354821422,1740717040623,-5143.48421127,0.00015,2]
[354821605,1740717044734,-9013.44687133,0.00015,2]
[354821607,1740717046084,-16101.227358,0.00015,2]
[354821608,1740717046097,-1277.74999995,0.00015,2]
[354821961,1740717186451,11007.63961855,0.0004,30]
[354821962,1740717280423,159.01,0.00024712,30]
[354821963,1740717280670,159.01,0.00037027,120]
[354821973,1740717578401,257.89977066,0.00014802,2]
[354821974,1740717583008,-162.0,0.00014924,2]
[354822008,1740718100320,1202.0,0.0004,30]
[354822069,1740718232104,-2052.58663,0.0001485,2]
[354822070,1740718232113,-147.90637248,0.00014999,2]
[354822071,1740718232125,-2.09362752,0.00014999,2]
[354822072,1740718232135,-366.40566699,0.00014999,2]
[354822073,1740718232147,-83.59433301,0.00014999,2]
[354822074,1740718232159,-150.0,0.00014999,2]
[354822075,1740718232169,-5448.89515462,0.00015,2]
[354822076,1740718232181,-533.19148394,0.00015,2]
[354822077,1740718232220,-3577.25414515,0.00015,2]
[354822078,1740718232230,-12619.07941834,0.00015,2]
[354822079,1740718232241,-386.44462596,0.00015,2]
[354822080,1740718232345,-915.47591036,0.00015,2]
[354822081,1740718232416,-4023.04648129,0.00015,2]
[354822093,1740718238075,-578.06334637,0.00015,2]
[354822101,1740718238369,-60854.57793797,0.00015,2]
[354822103,1740718238378,-187.98811525,0.00015,2]
[354822105,1740718238387,-276.25668533,0.00015,2]
[354822107,1740718238397,-6356.83324823,0.00015,2]
[354822109,1740718238406,-450.0,0.00016499,2]
[354822111,1740718238418,-150.0,0.00016499,2]
[354822113,1740718238428,-450.0,0.00016499,2]
[354822115,1740718238437,-150.0,0.00016499,2]
[354822117,1740718238447,-2052.58663,0.0001735,2]
[354822119,1740718238456,-1099.0,0.000176,2]
[354822123,1740718238466,-208.59511615,0.000182,2]
[354822126,1740718238475,-219.31,0.000186,2]
[354822129,1740718238484,-250.0,0.00018705,2]
[354822132,1740718238494,-208.59511615,0.0001915,2]
[354822135,1740718238503,-2052.58663,0.0001985,2]
[354822137,1740718238513,-18621.50120956,0.0002,4]
[354822139,1740718238522,-250.0,0.00021,2]
[354822141,1740718238531,-208.59511615,0.000214,2]
[354822143,1740718238540,-564.32,0.00021692,2]
[354822145,1740718238550,-167.35,0.00021918,2]
[354822147,1740718238559,-235.33,0.00022038,2]
[354822149,1740718238568,-235.33,0.00022154,2]
[354822151,1740718238577,-235.33,0.0002227,2]
[354822153,1740718238587,-150.0,0.00022333,7]
[354822155,1740718238596,-1000.0,0.00022337,2]
[354822157,1740718238605,-2052.58663,0.0002235,2]
[354822159,1740718238615,-200.0,0.00022356,2]
[354822161,1740718238624,-4360.68,0.0002236,2]
[354822163,1740718238634,-1312.62,0.00022381,2]
[354822165,1740718238643,-235.33,0.00022386,2]
[354822167,1740718238652,-235.33,0.00022502,2]
[354822169,1740718238665,-235.33,0.00022618,2]
[354822171,1740718238675,-506.9,0.00022668,2]
[354822173,1740718238683,-235.33,0.00022734,2]
[354822175,1740718238692,-235.33,0.0002285,2]
[354822177,1740718238702,-235.33,0.00022966,2]
[354822179,1740718238711,-300.0,0.00023,2]
[354822180,1740718238720,-235.33,0.00023082,2]
[354822183,1740718238730,-235.33,0.00023198,2]
[354822184,1740718238739,-235.33,0.00023314,2]
[354822186,1740718238748,-235.33,0.0002343,2]
[354822188,1740718238757,-1505.4218,0.0002345,2]
[354822190,1740718238766,-2353.2628,0.00023533,2]
[354822192,1740718238776,-784.2843,0.00023533,2]
[354822194,1740718238785,-235.33,0.00023546,2]
[354822196,1740718238795,-13416.6637378,0.0002355,2]
[354822198,1740718238804,-208.59511615,0.0002365,3]
[354822200,1740718238813,-235.33,0.00023662,2]
[354822202,1740718238822,-235.33,0.00023778,2]
[354822204,1740718238832,-250.0,0.00023866,2]
[354822206,1740718238841,-2751.0,0.00023891,2]
[354822208,1740718238851,-235.33,0.00023894,2]
[354822210,1740718238860,-308.14,0.00023906,2]
[354822212,1740718238870,-564.32,0.00023956,2]
[354822214,1740718238880,-23900.0,0.00023994,2]
[354822216,1740718238889,-176.76,0.00024009,2]
[354822218,1740718238898,-235.33,0.0002401,2]
[354822220,1740718238907,-176.37,0.00024022,2]
[354822222,1740718238920,-235.33,0.00024126,2]
[354822224,1740718238930,-235.33,0.00024242,2]
[354822226,1740718238940,-1660.563,0.0002454,7]
[354822228,1740718238949,-2052.58664,0.0002485,2]
[354822230,1740718238958,-350.0,0.00025,2]
[354822232,1740718238968,-1000.0,0.00025129,2]
[354822234,1740718238978,-574.0,0.000257,2]
[354822236,1740718238988,-208.59511615,0.000259,4]
[354822238,1740718238998,-564.32,0.00026219,2]
[354822240,1740718239008,-157.36,0.00026849,2]
[354822242,1740718239018,-164.23,0.00026849,2]
[354822244,1740718239027,-400.0,0.00027,2]
[354822246,1740718239036,-13416.66373776,0.0002701,2]
[354822248,1740718239046,-451.43,0.00027284,2]
[354822250,1740718239060,-440.84,0.00027284,2]
[354822252,1740718239070,-2052.58663,0.0002735,2]
[354822254,1740718239079,-154.3,0.00027397,2]
[354822257,1740718239092,-1000.0,0.00027921,2]
[354822259,1740718239102,-208.59511615,0.0002815,5]
[354822261,1740718239111,-777.07,0.00028243,2]
[354822263,1740718239120,-440.84,0.00028243,2]
[354822265,1740718239131,-777.07,0.00028243,2]
[354822267,1740718239140,-440.84,0.00028243,2]
[354822269,1740718239149,-777.07,0.00028243,2]
[354822271,1740718239159,-777.07,0.00028243,2]
[354822273,1740718239172,-777.07,0.00028243,2]
[354822275,1740718239182,-440.84,0.00028243,2]
[354822277,1740718239191,-440.84,0.00028243,2]
[354822279,1740718239201,-777.07,0.00028243,2]
[354822281,1740718239210,-777.07,0.00028243,2]